[Event "7th Sharjah Masters 2024"]
[Site "Sharjah"]
[Date "2024.05.17"]
[Round "4.11"]
[White "Zemlyanskii, Ivan"]
[Black "Nguyen, Thai Dai Van"]
[Result "1/2-1/2"]
[ECO "B30"]
[WhiteElo "2516"]
[BlackElo "2650"]
[Annotator "TA"]
[PlyCount "93"]
[EventDate "2024.05.13"]
[EventType "swiss"]
[EventCountry "UAE"]
[SourceTitle "playchess.com"]
[Source "ChessBase"]
[SourceQuality "1"]
[TimeControl "5400+30"]

{[%evp 11,93,4,0,0,4,0,33,24,36,38,25,45,33,34,36,56,35,14,6,25,3,0,-13,-13,0,-5,0,0,0,0,69,0,1,5,3,15,10,12,11,6,4,10,0,0,14,15,16,13,19,22,30,15,97,0,0,8,8,8,8,0,0,0,0,0,0,0,0,-8,-8,-8,-8,-8,-8,-8,-8,-8,-8,-8,-8,-8,-8,-8,-8,-8]} 1. e4 {[%emt 0:00:04]} c5 {[%emt 0:00:59]} 2. Nf3 {[%emt 0:00:08]} Nc6 {[%emt 0:00:06]} 3. Bb5 {[%emt 0:00:14]} e6 {[%emt 0:00:32]} 4. Bxc6 {[%emt 0:00:12]} bxc6 {[%emt 0:00:05]} 5. d3 {[%emt 0:00:06]} Qc7 {[%emt 0:00:09]} 6. O-O {[%emt 0:00:09]} Ne7 {[%emt 0:00:03]} 7. h4 {[%emt 0:00:39]} d6 {[%emt 0:00:21]} 8. h5 {[%emt 0:06:32]} h6 {[%emt 0:00:41]} 9. e5 {[%emt 0:02:48] White is slightly better.} dxe5 {[%emt 0:00:05][%cal Oc5c4]} 10. Re1 {[%emt 0:05:29][%cal Ob1d2]} g5 {[%emt 0:00:44]} 11. Nxe5 {[%emt 0:00:39]} Bg7 {[%emt 0:00:26]} 12. Nc4 {[%emt 0:01:46]} Ba6 {[%emt 0:03:00]} 13. Nbd2 {[%emt 0:04:47]} Rd8 {[%emt 0:01:57]} 14. Qf3 {[%emt 0:07:01]} O-O {[%emt 0:08:12]} 15. Nb3 {[%emt 0:08:39]} Nf5 {[%emt 0:07:19][%cal Be7f5,Bf5h4,Bh4g2,Bg2e3][%mdl 32]} 16. c3 {[%emt 0:08:55][%cal Bc2c3,Bc3c4][%mdl 32]} Rd5 {[%emt 0:13:10]} 17. Ne3 $1 {[%emt 0:02:51]} Re5 {[%emt 0:05:57]} (17... Rxd3 18. Nxc5 Rxe3 (18... Nh4 $2 19. Qe4 $18) 19. Bxe3 $18) 18. Rd1 {[%emt 0:03:24]} Rd8 {[%emt 0:03:38]} 19. c4 $1 {[%emt 0:01:38]} Nh4 {[%emt 0:21:04]} 20. Qh3 {[%emt 0:02:58]} f5 {[%emt 0:13:53] [#]} (20... Nf5 $11) 21. f4 $1 {[%emt 0:07:36]} gxf4 $11 {[%emt 0:01:44] And now ...Bf6 would win.} 22. Nf1 {[%emt 0:01:20]} Qe7 $132 {[%emt 0:00:27][%mdl 2048] ...Re2 is the strong threat. Black has counterplay} 23. Bxf4 {[%emt 0:07:19][%cal Od1d2] Black must now prevent Rd2!} Re2 {[%emt 0:00:05][%csl LRb2,LRg2]} 24. Rd2 {[%emt 0:01:40]} Nxg2 $1 {[%emt 0:04:12]} 25. Bg3 {[%emt 0:02:21]} Rxd2 {[%emt 0:06:37]} 26. Nbxd2 {[%emt 0:00:21]} f4 {[%emt 0:00:17]} (26... Bxb2 $2 27. Qxg2 Kh7 28. Rb1 Bd4+ 29. Kh1 $18) 27. Bf2 {[%emt 0:02:04]} Ne3 {[%emt 0:00:20]} (27... Bxb2 28. Rb1 (28. Qxg2+ Kh8 $15) 28... Ne3 29. Rxb2 Qg7+ 30. Kh1 (30. Ng3 $2 Nf5 $19) 30... Nxf1 31. Nxf1 Qxb2 32. Qxe6+ (32. Bxc5 $2 Qe2 $19) 32... Kh8 33. Qxh6+ Kg8 34. Qg5+ (34. Bxc5 $2 Qe5 $19) 34... Kh7 35. Qg6+ (35. Qxd8 Qxf2 36. Qd7+ Kh6 $11) 35... Kh8 36. Bh4 $18 (36. Bxc5 $2 Qe5 $19)) 28. Bh4 $1 {[%emt 0:03:16]} Bf6 {[%emt 0:00:13]} 29. Bxf6 {[%emt 0:00:16]} Qxf6 {[%emt 0:00:01]} 30. Nxe3 {[%emt 0:01:50]} fxe3 {[%emt 0:00:33]} 31. Qxe3 {[%emt 0:01:35][%cal Oa1f1] With the idea Rf1!} Qf5 {[%emt 0:06:32]} (31... Kh8 $1 $11 32. Rf1 Rg8+ 33. Kh2 Qh4+ 34. Qh3 Qg5) 32. Rf1 {[%emt 0:05:49]} (32. Qxh6 $2 {loses.} Rxd3 33. Kg2 Qh3+ 34. Kf2 Rg3 $19) ({Better is} 32. Qg3+ $16 Kh8 33. Rf1 Qxh5 (33... Rg8 34. Qxg8+ Kxg8 35. Rxf5 $16) 34. Kf2) 32... Rxd3 {[%emt 0:01:48][%cal Bd8d3,Bd3e3,Be3e2,Be2b2,Bb2a2,Ba2a4][%mdl 32] The position is equal.} 33. Rxf5 {[%emt 0:02:27]} Rxe3 {[%emt 0:00:02]} 34. Rxc5 {[%emt 0:02:45][%mdl 4096] Endgame. KRB-KRN} Re2 {[%emt 0:00:02]} 35. Nb3 {[%emt 0:01:58]} Rxb2 {[%emt 0:01:28]} 36. Rxc6 {[%emt 0:00:31]} Rxa2 {[%emt 0:00:02]} 37. Nd4 {[%emt 0:01:49]} Ra4 {[%emt 0:00:56]} 38. Rxe6 {[%emt 0:00:42]} Bxc4 {[%emt 0:00:28]} 39. Rg6+ {[%emt 0:02:02]} Kh7 {[%emt 0:00:47]} 40. Nf5 {[%emt 0:00:34]} Ra6 {[%emt 0:00:29]} 41. Nxh6 {[%emt 0:00:44]} Rxg6+ {[%emt 0:00:32]} 42. hxg6+ {[%emt 0:00:03]} Kxh6 {[%emt 0:00:08] KB-KP} (42... Kxg6 $5 43. Ng4 $8 Bb5 $11) 43. Kf2 {[%emt 0:00:03]} a5 {[%emt 0:00:36][%cal Oa5a4]} (43... Kxg6 $2 44. Ke3 $19) 44. Ke3 {[%emt 0:00:05]} a4 {[%emt 0:00:11][%cal Oa4a3]} (44... Kxg6 45. Kd4 Bf7 46. Kc5 $19) 45. Kd2 {[%emt 0:00:04]} a3 {[%emt 0:00:10][%cal Oa3a2] ( -> ...a2!)} (45... Kxg6 $2 46. Kc1 $19) 46. Kc2 {[%emt 0:00:04]} Ba2 {[%emt 0:00:05]} (46... Kxg6 $2 47. Kb1 $19) 47. Kc3 {[%emt 0:00:05] Weighted Error Value: White=0.08 (flawless) /Black=0.09 (flawless) .  Mistake:       	White=2     	Black=2      Inaccurate:     	---       	Black=1      OK:         	White=17    	Black=18     Best:        	White=4     	Black=3      Strong:       	White=3     	Black=1} 1/2-1/2

[Event "7th Sharjah Masters 2024"]
[Site "Sharjah"]
[Date "2024.05.17"]
[Round "4.12"]
[White "Suleymanli, Aydin"]
[Black "Daneshvar, Bardiya"]
[Result "0-1"]
[ECO "C65"]
[WhiteElo "2621"]
[BlackElo "2582"]
[Annotator "TA"]
[PlyCount "124"]
[EventDate "2024.05.13"]
[EventType "swiss"]
[EventCountry "UAE"]
[SourceTitle "playchess.com"]
[Source "ChessBase"]
[SourceQuality "1"]
[TimeControl "5400+30"]

{[%evp 56,124,-68,-62,-22,-76,-66,-65,-59,-70,-63,-59,-73,-75,-57,-61,-40,-68,0,-87,-58,-71,-77,-70,-20,-16,-24,-23,-18,-52,-52,-50,-50,-52,-34,-40,-66,-230,-255,-262,-268,-254,-248,-246,-251,-294,-244,-233,-244,-235,-246,-307,-237,-212,-184,-244,-149,-167,-139,-135,-136,-137,-137,-168,-159,-234,-215,-437,-425,-530,-521]} 1. e4 {[%emt 1:31:00]} e5 {[%emt 1:31:00]} 2. Nf3 {[%emt 0:00:30]} Nc6 {[%emt 0:00:30]} 3. Bb5 {[%emt 0:00:30]} Nf6 {[%emt 0:00:30]} 4. d3 {[%emt 0:00:30]} Bc5 {[%emt 0:00:30]} 5. c3 {[%emt 0:00:30]} O-O {[%emt 0:00:30]} 6. Bg5 {[%emt 0:00:30] C65: Ruy Lopez: Berlin Defence (3...Nf6), unusual lines and 4 0-0 Bc5.} h6 {[%emt 0:00:30]} 7. Bh4 {[%emt 0:00:30]} Be7 {[%emt 0:00:30]} 8. O-O {[%emt 0:00:30]} d6 {[%emt 0:00:30]} 9. Bg3 {[%emt 0:00:30]} a6 {[%emt 0:00:30]} 10. Ba4 {[%emt 0:00:30]} Re8 {[%emt 0:00:30]} 11. Nbd2 {[%emt 0:00:30]} Bf8 {[%emt 0:00:30]} 12. h3 {[%emt 0:00:30]} b5 {[%emt 0:00:30]} 13. Bc2 {[%emt 0:00:30]} Bb7 {[%emt 0:00:30]} 14. Re1 {[%emt 0:00:30]} Nb8 $5 $146 {[%emt 0:00:30][%mdl 8] New and interesting.} ({Predecessor:} 14... g6 15. a4 Bg7 16. b4 Nh5 17. Bb3 Qd7 18. Bh2 Kh7 19. Nf1 Nd8 20. Ne3 Ne6 {½-½ Saric,I (2669)-Mastrovasilis,D (2627) Wch Rapid Warsaw 2021 (3)}) 15. d4 {[%emt 0:00:30]} Nbd7 {[%emt 0:00:30]} 16. b3 {[%emt 0:00:30]} g6 {[%emt 0:00:30]} 17. d5 {[%emt 0:00:30]} c6 {[%emt 0:00:30]} 18. c4 {[%emt 0:00:30]} cxd5 {[%emt 0:00:30]} 19. cxd5 {[%emt 0:00:30]} Qa5 {[%emt 0:00:30]} 20. a3 {[%emt 0:00:30]} Qc3 {[%emt 0:00:30]} 21. Re3 {[%emt 0:00:30]} Qc7 {[%emt 0:00:30]} 22. b4 {[%emt 0:00:30]} Rec8 {[%emt 0:00:30]} 23. Bd3 {[%emt 0:00:30]} Nh5 {[%emt 0:00:30]} 24. Bh2 {[%emt 0:00:30]} Nf4 {[%emt 0:00:30]} 25. Bf1 {[%emt 0:00:30]} Nb6 {[%emt 0:00:30]} 26. g3 {[%emt 0:00:30]} Nh5 {[%emt 0:00:30]} 27. Nh4 {[%emt 0:00:30]} Na4 {[%emt 0:00:30]} 28. Nb3 {[%emt 0:00:30]} Qd7 {[%emt 0:00:30]} 29. Na5 {[%emt 0:00:30]} Ra7 {[%emt 0:00:30]} 30. Qg4 {[%emt 0:00:30]} (30. g4 $11 Nf6 31. Bg2) 30... Qxg4 $17 {[%emt 0:00:30]} 31. hxg4 {[%emt 0:00:30]} Nf6 {[%emt 0:00:30]} 32. f3 {[%emt 0:00:30]} Ba8 {[%emt 0:00:30]} 33. Kh1 {[%emt 0:00:30]} Rac7 {[%emt 0:00:30]} 34. Bg1 {[%emt 0:00:30]} Be7 {[%emt 0:00:30]} 35. Ree1 {[%emt 0:00:30]} Nd7 {[%emt 0:00:30]} 36. Ng2 {[%emt 0:00:30]} Bg5 {[%emt 0:00:30]} (36... Rc3 $15 37. Be3 f5 38. gxf5 (38. Bxh6 fxe4 39. fxe4 Nf6 $19) 38... gxf5) 37. Ne3 {[%emt 0:00:30]} (37. Be3 $1 $11 {remains equal.}) 37... Rc3 {[%emt 0:00:30]} 38. Kg2 {[%emt 0:00:30]} Kg7 {[%emt 0:00:30]} 39. Bf2 {[%emt 0:00:30]} Bd8 {[%emt 0:00:30]} ({Better is} 39... Nf6 $15) 40. Nd1 $11 {[%emt 0:00:30]} Rc2 {[%emt 0:00:30]} 41. Ne3 {[%emt 0:00:30]} R2c7 {[%emt 0:00:30]} 42. Reb1 {[%emt 0:00:30]} Bg5 {[%emt 0:00:30]} 43. Re1 {[%emt 0:00:30]} Ndb6 {[%emt 0:00:30]} 44. Be2 {[%emt 0:00:30]} Rc3 {[%emt 0:00:30]} 45. Nd1 {[%emt 0:00:30]} Rc1 {[%emt 0:00:30]} 46. Ra2 $2 {[%emt 0:00:30] [#]} ({White should try} 46. Ne3 $15 R1c3 47. Nd1) 46... Nxd5 $1 $19 {[%emt 0:00:30]} 47. Nb3 {[%emt 0:00:30]} (47. exd5 $2 {perishes.} Bxd5 48. Bxb5 axb5 $19) 47... R1c7 {[%emt 0:00:30]} 48. exd5 {[%emt 0:00:30]} Bxd5 49. Rd2 {[%emt 0:00:30]} Bxb3 {[%emt 0:01:00]} 50. Rxd6 {[%emt 0:00:30]} Rc6 {[%emt 0:00:30]} 51. Rxc6 {[%emt 0:00:30]} Rxc6 52. Be3 {[%emt 0:00:30]} Rc2 {[%emt 0:01:00]} 53. f4 {[%emt 0:00:30]} exf4 {[%emt 0:00:30]} 54. gxf4 {[%emt 0:00:30]} Bh4 {[%emt 0:00:30]} (54... Rxe2+ 55. Rxe2 Bxd1 56. Rd2 Bxf4 57. Bd4+ (57. Bxf4 Bxg4 58. Rd6 Be6 $11) 57... f6 58. Rxd1 $16) 55. Nf2 {[%emt 0:00:30]} (55. Bd4+ $142 Bf6 56. Bxf6+ Kxf6 57. Nf2) 55... Bd5+ {[%emt 0:00:30]} 56. Bf3 {[%emt 0:00:30]} Bxf3+ {[%emt 0:00:30]} 57. Kxf3 Rc3 {[%emt 0:00:30]} 58. Rh1 {[%emt 0:01:00]} Bd8 {[%emt 0:00:30]} 59. Ne4 {[%emt 0:00:30]} Rxa3 {[%emt 0:00:30]} 60. Ke2 {[%emt 0:00:30]} (60. Kf2 $17) 60... Bb6 $19 {[%emt 0:00:30]} 61. Nc5 $2 {[%emt 0:00:30]} (61. Bc1 Rb3 62. f5) 61... Nc3+ $19 {[%emt 0:00:30]} 62. Kf2 {[%emt 0:00:30]} Ne4+ {[%emt 0:00:30]} 0-1

[Event "7th Sharjah Masters 2024"]
[Site "Sharjah"]
[Date "2024.05.17"]
[Round "4.13"]
[White "Maurizzi, Marc`Andria"]
[Black "Iniyan, Pa"]
[Result "1/2-1/2"]
[ECO "B96"]
[WhiteElo "2618"]
[BlackElo "2497"]
[Annotator "RC"]
[PlyCount "54"]
[EventDate "2024.05.13"]
[EventType "swiss"]
[EventCountry "UAE"]
[SourceTitle "playchess.com"]
[Source "ChessBase"]
[SourceQuality "1"]
[TimeControl "5400+30"]

1. e4 {[%emt 0:00:07]} c5 {[%emt 0:00:24]} 2. Nf3 {[%emt 0:00:38]} d6 {[%emt 0:00:10]} 3. d4 {[%emt 0:00:39]} cxd4 {[%emt 0:00:09]} 4. Nxd4 {[%emt 0:00:06]} Nf6 {[%emt 0:00:08]} 5. Nc3 {[%emt 0:00:03]} a6 {[%emt 0:00:07]} 6. Bg5 {[%emt 0:00:41]} e6 {[%emt 0:00:46]} 7. f4 {[%emt 0:01:00]} Nbd7 {[%emt 0:00:08]} 8. Qf3 {[%emt 0:02:12]} Qc7 {[%emt 0:00:08]} 9. O-O-O {[%emt 0:00:46]} b5 {[%emt 0:00:05]} 10. Bxf6 {[%emt 0:00:39]} Nxf6 {[%emt 0:01:17]} 11. f5 {[%emt 0:00:06]} b4 {[%emt 0:05:16]} 12. Ncb5 {[%emt 0:00:04]} Qb7 {[%emt 0:16:18]} 13. e5 {[%emt 0:00:18]} Qxf3 {[%emt 0:00:09]} 14. gxf3 {[%emt 0:00:05]} axb5 {[%emt 0:00:08]} 15. exf6 {[%emt 0:00:04]} gxf6 {[%emt 0:14:24]} 16. Bxb5+ {[%emt 0:00:16]} Bd7 {[%emt 0:00:06]} 17. fxe6 {[%emt 0:00:04]} fxe6 {[%emt 0:00:07]} 18. Nxe6 {[%emt 0:00:03]} Rxa2 {[%emt 0:00:17]} 19. Bc4 {[%emt 0:20:49]} Ra1+ {[%emt 0:00:31]} 20. Kd2 {[%emt 0:00:08]} Bh6+ {[%emt 0:00:51]} 21. Kd3 {[%emt 0:02:25]} Rxd1+ {[%emt 0:04:41]} 22. Rxd1 {[%emt 0:00:00]} Bg5 {[%emt 0:00:18]} 23. Ra1 {[%emt 0:15:49]} Ke7 {[%emt 0:00:16]} 24. Bd5 {[%emt 0:00:05]} f5 {[%emt 0:00:14]} 25. h4 {[%emt 0:08:20]} Bc1 {[%emt 0:02:23]} 26. Rb1 {[%emt 0:00:35]} Bf4 {[%emt 0:00:46]} 27. Re1 {[%emt 0:02:47]} Kf6 {[%emt 0:09:52]} 1/2-1/2

[Event "7th Sharjah Masters 2024"]
[Site "Sharjah"]
[Date "2024.05.17"]
[Round "4.14"]
[White "Siddharth, Jagadeesh"]
[Black "Yuffa, Daniil"]
[Result "0-1"]
[ECO "B33"]
[WhiteElo "2512"]
[BlackElo "2617"]
[Annotator "TA"]
[PlyCount "82"]
[EventDate "2024.05.13"]
[EventType "swiss"]
[EventCountry "UAE"]
[SourceTitle "playchess.com"]
[Source "ChessBase"]
[SourceQuality "1"]
[TimeControl "5400+30"]

{[%evp 18,82,14,20,47,46,38,32,27,40,41,27,24,14,27,33,39,22,50,8,15,0,7,0,0,0,0,0,0,0,0,0,0,0,0,-6,0,-27,-16,-107,-115,-162,-88,-539,-539,-910,-910,-1356,-1454,-29982,-29983,-29983,-29984,-29984,-29985,-29985,-29984,-29986,0,-29978,-29978,-29993,-29994,-29994,-29995,-29995,149]} 1. e4 {[%emt 0:00:06]} c5 {[%emt 0:00:39]} 2. Nf3 {[%emt 0:00:11][%cal Bg1f3,Bf3d4,Bd4b5][%mdl 32]} Nc6 {[%emt 0:00:11]} 3. d4 {[%emt 0:00:04]} cxd4 {[%emt 0:00:05]} 4. Nxd4 {[%emt 0:00:05]} Nf6 {[%emt 0:00:05]} 5. Nc3 {[%emt 0:00:13]} e5 {[%emt 0:00:11]} 6. Ndb5 {[%emt 0:00:05]} d6 {[%emt 0:00:11]} 7. Nd5 {[%emt 0:00:07]} Nxd5 {[%emt 0:00:07]} 8. exd5 {[%emt 0:00:05]} Nb8 {[%emt 0:00:06]} 9. c4 {[%emt 0:00:09]} a6 {[%emt 0:00:32]} 10. Qa4 {[%emt 0:00:08]} Bd7 {[%emt 0:10:47]} 11. Qa3 {[%emt 0:00:08]} Bxb5 {[%emt 0:05:16]} 12. cxb5 {[%emt 0:00:17]} a5 {[%emt 0:02:44] [#] White is slightly better.} 13. b6 $1 {[%emt 0:00:06]} Qxb6 {[%emt 0:08:04]} 14. Be3 {[%emt 0:00:15]} (14. Qa4+ {feels hotter.} Kd8 15. Bb5 Qd4 16. Bg5+) 14... Qb4+ {[%emt 0:05:28]} 15. Qxb4 {[%emt 0:00:07]} axb4 {[%emt 0:00:03]} 16. Rc1 {[%emt 0:00:07][%cal Ba1c1,Bc1c4,Bc4b4,Bb4b7][%mdl 32] And now Bb5+ would win.} Na6 $1 {[%emt 0:03:24] Black is weak on the light squares} 17. Bb5+ {[%emt 0:13:13][%mdl 1024] White has compensation.} Kd8 {[%emt 0:07:28][%cal Be8d8,Bd8e7,Be7f6,Bf6g6][%mdl 32]} 18. Bb6+ {[%emt 0:10:30] This pair of bishops is nice.} Ke7 {[%emt 0:00:08]} 19. O-O {[%emt 0:05:41]} g5 {[%emt 0:08:44]} 20. Rc4 {[%emt 0:11:42]} f5 {[%emt 0:06:57]} 21. Rfc1 {[%emt 0:03:57]} Kf6 {[%emt 0:06:03]} 22. Bxa6 {[%emt 0:10:24]} Rxa6 {[%emt 0:07:06]} 23. Rxb4 {[%emt 0:00:57]} Rxa2 {[%emt 0:02:02]} 24. Bd8+ {[%emt 0:00:42]} Kg6 {[%emt 0:06:51]} 25. Rxb7 {[%emt 0:00:29]} f4 {[%emt 0:01:35]} 26. f3 {[%emt 0:01:34]} h5 {[%emt 0:02:15]} 27. b4 {[%emt 0:02:21]} g4 {[%emt 0:01:33][%cal Oe5e4] next ...e4! is good for Black.} 28. b5 {[%emt 0:01:19]} (28. Bh4 $11) 28... h4 $17 {[%emt 0:02:34] ...g3 is the strong threat.} 29. h3 {[%emt 0:05:15] [#]} (29. fxg4 $17 h3 30. g3 (30. gxh3 $2 Rxh3 31. Be7 Bxe7 $19)) 29... g3 {[%emt 0:00:11]} (29... gxf3 $1 $19 30. gxf3 Bh6 31. Bxh4 (31. Rd7 $2 Rg8 $19) 31... e4) 30. Rb1 $2 {[%emt 0:11:27][%mdl 8192]} (30. Rd7 $17) 30... Bg7 $19 {[%emt 0:03:47]} 31. Rd7 {[%emt 0:00:20] [#]} e4 $1 {[%emt 0:02:55][%mdl 512] ( -> ...Bd4+)} 32. Rxd6+ {[%emt 0:00:06] [#]} (32. Rxg7+ Kxg7) 32... Kh5 $1 {[%emt 0:00:39]} 33. Bf6 {[%emt 0:05:46] [#]} Rc8 $1 {[%emt 0:02:13]} 34. Bxg7 {[%emt 0:13:59]} (34. Re1 Re2) 34... Rcc2 {[%emt 0:00:07]} 35. Re1 {[%emt 0:02:22]} Rxg2+ {[%emt 0:01:03]} 36. Kh1 {[%emt 0:00:01]} Rh2+ {[%emt 0:02:42]} ({Stronger than} 36... exf3 37. Re5#) 37. Kg1 {[%emt 0:00:01]} Rhg2+ {[%emt 0:00:01]} ({Weaker is} 37... exf3 38. Re5#) 38. Kh1 {[%emt 0:00:01]} Rge2 {[%emt 0:00:35][%cal Re2e1] Black mates.} ({Worse is} 38... exf3 39. Re5#) 39. Bc3 {[%emt 0:01:33]} exf3 {[%emt 0:00:42]} 40. Rxe2 {[%emt 0:00:44]} Rxe2 {[%emt 0:00:38]} 41. Re6 {[%emt 0:02:28]} Rh2+ {[%emt 0:00:18][%mdl 32768] Weighted Error Value: White=0.80/Black=0.20 (precise) .  Loses game:     	White=1     	---        Mistake:       	White=2     	Black=1      Inaccurate:     	White=4     	Black=1      OK:         	White=8     	Black=9      Best:        	White=2     	Black=2      Strong:       	---       	Black=1      Brilliant:      	---       	Black=1     . Loss on time!?} 0-1

[Event "7th Sharjah Masters 2024"]
[Site "Sharjah"]
[Date "2024.05.17"]
[Round "4.15"]
[White "Maghsoodloo, Parham"]
[Black "Royal, Shreyas"]
[Result "1/2-1/2"]
[ECO "A29"]
[WhiteElo "2733"]
[BlackElo "2464"]
[Annotator "TA"]
[PlyCount "62"]
[EventDate "2024.05.13"]
[EventType "swiss"]
[EventCountry "UAE"]
[SourceTitle "playchess.com"]
[Source "ChessBase"]
[SourceQuality "1"]
[TimeControl "5400+30"]

{[%evp 11,62,14,18,8,25,18,20,0,13,23,22,2,2,0,0,10,0,-13,0,-5,-7,-4,-12,-7,0,0,0,0,0,0,0,0,0,0,0,0,0,0,0,0,0,0,0,0,0,0,0,0,0,0,2,2,2]} 1. c4 {[%emt 0:00:26]} e5 {[%emt 0:00:07]} 2. Nc3 {[%emt 0:00:07]} Nf6 {[%emt 0:00:08]} 3. Nf3 {[%emt 0:00:05]} Nc6 {[%emt 0:00:07]} 4. g3 {[%emt 0:00:04]} Bb4 {[%emt 0:00:17]} 5. Bg2 {[%emt 0:00:14]} d6 {[%emt 0:00:47]} 6. O-O {[%emt 0:01:50]} O-O {[%emt 0:00:40]} 7. Na4 {[%emt 0:02:16]} a5 {[%emt 0:08:31]} 8. d3 {[%emt 0:12:14]} Qe7 {[%emt 0:04:40]} 9. Bg5 {[%emt 0:08:58]} h6 {[%emt 0:03:32]} 10. Bxf6 {[%emt 0:00:36]} Qxf6 {[%emt 0:00:07]} 11. a3 {[%emt 0:05:23] The position is equal.} Bc5 {[%emt 0:02:21]} 12. Nd2 {[%emt 0:09:19]} Ba7 {[%emt 0:03:01]} 13. Nc3 {[%emt 0:02:17]} Qd8 {[%emt 0:11:28]} 14. b4 {[%emt 0:08:42]} Bd4 {[%emt 0:12:39]} 15. Qb3 {[%emt 0:06:26]} Bxc3 {[%emt 0:00:37]} 16. Qxc3 {[%emt 0:00:02]} Nd4 {[%emt 0:00:25]} 17. Rae1 {[%emt 0:05:51]} axb4 {[%emt 0:01:23]} 18. axb4 {[%emt 0:00:01]} Ra2 {[%emt 0:00:22] [#] ...Rc2 would now be deadly.} 19. e3 $1 {[%emt 0:00:51]} Rc2 {[%emt 0:00:38]} 20. Qa1 {[%emt 0:00:30]} Rxd2 {[%emt 0:01:01]} 21. exd4 {[%emt 0:00:05]} Rxd3 {[%emt 0:06:16]} 22. dxe5 {[%emt 0:00:39]} Be6 {[%emt 0:00:26]} 23. Bxb7 {[%emt 0:11:32]} Bxc4 {[%emt 0:01:32]} 24. Rc1 {[%emt 0:01:44]} Be6 {[%emt 0:01:27]} 25. b5 {[%emt 0:02:34]} Bd5 {[%emt 0:03:48]} 26. Bc6 {[%emt 0:05:24]} Bxc6 {[%emt 0:00:52]} 27. Rxc6 {[%emt 0:01:14]} dxe5 {[%emt 0:00:06]} 28. Qxe5 {[%emt 0:00:05]} Qd5 {[%emt 0:01:13]} 29. Rc5 {[%emt 0:00:17]} Qxe5 {[%emt 0:00:52]} 30. Rxe5 {[%emt 0:00:05]} c6 {[%emt 0:01:00]} 31. bxc6 {[%emt 0:00:29]} Rc3 {[%emt 0:00:05] Against Rc1. A balanced but interesting game.   Weighted Error Value: White=0.03 (flawless) /Black=0.02 (flawless) .  OK:         	White=11    	Black=13     Best:        	---       	Black=1      Strong:       	White=1     	---} 1/2-1/2

[Event "7th Sharjah Masters 2024"]
[Site "Sharjah"]
[Date "2024.05.17"]
[Round "4.16"]
[White "Radjabov, Teimour"]
[Black "Gurel, Ediz"]
[Result "1/2-1/2"]
[ECO "A21"]
[WhiteElo "2723"]
[BlackElo "2578"]
[Annotator "TA"]
[PlyCount "29"]
[EventDate "2024.05.13"]
[EventType "swiss"]
[EventCountry "UAE"]
[SourceTitle "playchess.com"]
[Source "ChessBase"]
[SourceQuality "1"]
[TimeControl "5400+30"]

{[%evp 9,29,0,6,0,0,0,9,-18,-8,-16,-11,0,0,0,41,19,22,5,12,12,12,0]} 1. c4 {[%emt 0:00:07]} e5 {[%emt 0:00:19]} 2. Nc3 {[%emt 0:00:07]} Bb4 {[%emt 0:00:23]} 3. Nd5 {[%emt 0:00:26]} Be7 {[%emt 0:00:06]} 4. Nf3 {[%emt 0:01:10]} d6 {[%emt 0:00:18]} 5. d3 {[%emt 0:00:39]} Nf6 {[%emt 0:01:30]} 6. Nc3 {[%emt 0:00:04]} O-O {[%emt 0:01:13]} 7. g3 {[%emt 0:00:53]} c6 {[%emt 0:04:32]} 8. Bd2 {[%emt 0:08:23]} h6 {[%emt 0:08:54]} 9. Bg2 {[%emt 0:04:42]} Be6 {[%emt 0:01:11]} 10. O-O {[%emt 0:07:08]} Nbd7 {[%emt 0:00:16]} 11. e4 {[%emt 0:06:05]} d5 {[%emt 0:11:47]} 12. exd5 {[%emt 0:23:42]} cxd5 {[%emt 0:00:06] The position is equal.} 13. cxd5 {[%emt 0:00:17]} Nxd5 {[%emt 0:00:06]} 14. d4 {[%emt 0:01:05]} Bf6 {[%emt 0:07:01]} 15. dxe5 {[%emt 0:06:19] Not much happened in this game.   Weighted Error Value: White=0.08 (flawless) /Black=0.07 (flawless) .  Inaccurate:     	White=1     	Black=1      OK:         	White=3     	Black=2} 1/2-1/2

[Event "7th Sharjah Masters 2024"]
[Site "Sharjah"]
[Date "2024.05.17"]
[Round "4.17"]
[White "Artemiev, Vladislav"]
[Black "Safarli, Eltaj"]
[Result "1/2-1/2"]
[ECO "D38"]
[WhiteElo "2705"]
[BlackElo "2597"]
[Annotator "TA"]
[PlyCount "40"]
[EventDate "2024.05.13"]
[EventType "swiss"]
[EventCountry "UAE"]
[SourceTitle "playchess.com"]
[Source "ChessBase"]
[SourceQuality "1"]
[TimeControl "5400+30"]

{[%evp 12,40,15,16,20,17,42,42,32,23,20,23,38,29,36,30,30,32,52,24,27,0,0,0,0,0,0,0,0,0,0]} 1. d4 {[%emt 0:01:49]} Nf6 {[%emt 0:01:23]} 2. Nf3 {[%emt 0:00:33]} d5 {[%emt 0:01:22]} 3. c4 {[%emt 0:02:23]} e6 {[%emt 0:02:05]} 4. Nc3 {[%emt 0:00:31]} Bb4 {[%emt 0:06:20]} 5. cxd5 {[%emt 0:06:23]} exd5 {[%emt 0:00:20]} 6. Bg5 {[%emt 0:00:18]} h6 {[%emt 0:01:27]} 7. Bh4 {[%emt 0:01:07]} O-O {[%emt 0:01:53]} 8. e3 {[%emt 0:03:26]} c5 {[%emt 0:01:34]} 9. dxc5 {[%emt 0:24:36]} Nbd7 {[%emt 0:10:46][%cal Od8a5] White is slightly better.} 10. Qd4 {[%emt 0:13:45]} Bxc5 {[%emt 0:02:44]} 11. Qd2 {[%emt 0:00:30][%cal Oa1c1]} Bb4 {[%emt 0:10:48]} 12. a3 {[%emt 0:07:58]} Bxc3 {[%emt 0:04:04]} 13. Qxc3 {[%emt 0:00:07]} g5 {[%emt 0:00:24]} 14. Bg3 {[%emt 0:00:08]} Ne4 {[%emt 0:00:06]} 15. Qc7 {[%emt 0:10:28]} Qf6 {[%emt 0:04:11]} 16. Nd4 {[%emt 0:06:57]} (16. Be5 {simplifies} Nxe5 17. Qxe5 Qxe5 18. Nxe5 Kg7 19. Rd1) 16... Ndc5 {[%emt 0:01:24] [#] And now ...Bg4 would win. A dynamic duo of knights. The position is equal.} 17. Qe5 {[%emt 0:06:51]} Qxe5 {[%emt 0:06:58]} 18. Bxe5 {[%emt 0:00:06]} Re8 {[%emt 0:00:27]} 19. Bg3 {[%emt 0:00:59]} Bd7 {[%emt 0:00:56]} 20. Be2 {[%emt 0:08:43]} Rac8 {[%emt 0:01:27] Weighted Error Value: White=0.06 (flawless) /Black=0.03 (flawless) .  Inaccurate:     	White=2     	---        OK:         	White=7     	Black=10     Best:        	---       	Black=1} 1/2-1/2